[Event "Early-Titled-Tuesday-Blitz-June-18-2024"]
[Site "Chess.com"]
[Date "2024.06.18"]
[Round "2"]
[White "BardArtem"]
[Black "TitarovVasiliYouTube"]
[Result "1-0"]
[WhiteElo "2843"]
[BlackElo "2586"]
[TimeControl "180+1"]
[EndTime "8:18:39 PDT"]
[Termination "BardArtem won on time"]

1. e4 {[%clk 0:03:00.9]} 1... Nf6 {[%clk 0:03:00.9]} 2. Nc3 {[%clk 0:02:59.4]}
2... d5 {[%clk 0:02:59.8]} 3. e5 {[%clk 0:02:59.9]} 3... Nfd7 {[%clk 0:02:59.2]}
4. d4 {[%clk 0:02:47.9]} 4... e6 {[%clk 0:02:59.1]} 5. f4 {[%clk 0:02:44.8]}
5... c5 {[%clk 0:02:59.1]} 6. dxc5 {[%clk 0:02:45.7]} 6... Bxc5 {[%clk
0:02:58.8]} 7. Qg4 {[%clk 0:02:46.1]} 7... g6 {[%clk 0:02:56.1]} 8. Bd3 {[%clk
0:02:44.8]} 8... h5 {[%clk 0:02:55.8]} 9. Qh3 {[%clk 0:02:42.1]} 9... Nc6 {[%clk
0:02:51.2]} 10. a3 {[%clk 0:02:40.2]} 10... Be7 {[%clk 0:02:36.5]} 11. Nf3
{[%clk 0:02:30.4]} 11... Nc5 {[%clk 0:02:36.6]} 12. O-O {[%clk 0:02:21.8]} 12...
Nxd3 {[%clk 0:02:34.3]} 13. cxd3 {[%clk 0:02:22.7]} 13... b6 {[%clk 0:02:33.8]}
14. Bd2 {[%clk 0:02:09.8]} 14... Ba6 {[%clk 0:02:33.7]} 15. Ng5 {[%clk
0:01:59.1]} 15... Nd4 {[%clk 0:02:18]} 16. Rae1 {[%clk 0:01:41.1]} 16... Rc8
{[%clk 0:01:56.3]} 17. Ne2 {[%clk 0:01:37.3]} 17... Nxe2+ {[%clk 0:01:34]} 18.
Rxe2 {[%clk 0:01:38.2]} 18... Rc2 {[%clk 0:01:32.3]} 19. Rc1 {[%clk 0:01:27.2]}
19... Qc8 {[%clk 0:01:22.6]} 20. Rxc2 {[%clk 0:01:18.8]} 20... Qxc2 {[%clk
0:01:23.5]} 21. Qf3 {[%clk 0:00:55]} 21... Qxd3 {[%clk 0:01:17.1]} 22. Qxd3
{[%clk 0:00:50.4]} 22... Bxd3 {[%clk 0:01:18]} 23. Re1 {[%clk 0:00:49]} 23...
Bxg5 {[%clk 0:00:52.3]} 24. fxg5 {[%clk 0:00:49.9]} 24... Kd7 {[%clk 0:00:50.5]}
25. Rc1 {[%clk 0:00:47.5]} 25... a5 {[%clk 0:00:34.9]} 26. Kf2 {[%clk
0:00:46.9]} 26... h4 {[%clk 0:00:33.7]} 27. Be3 {[%clk 0:00:42]} 27... Rb8
{[%clk 0:00:27.1]} 28. b4 {[%clk 0:00:27.4]} 28... a4 {[%clk 0:00:26.1]} 29. g3
{[%clk 0:00:17.3]} 29... hxg3+ {[%clk 0:00:25]} 30. Kxg3 {[%clk 0:00:18.2]}
30... b5 {[%clk 0:00:19.2]} 31. Bc5 {[%clk 0:00:16.4]} 31... Rh8 {[%clk
0:00:17.9]} 32. h4 {[%clk 0:00:16.8]} 32... Rc8 {[%clk 0:00:10.2]} 33. Rh1
{[%clk 0:00:16.3]} 33... Be4 {[%clk 0:00:08.8]} 34. Rh2 {[%clk 0:00:16.4]} 34...
Rxc5 {[%clk 0:00:05.3]} 35. bxc5 {[%clk 0:00:15.1]} 35... Kc6 {[%clk 0:00:06.2]}
36. Rf2 {[%clk 0:00:11]} 36... Bf5 {[%clk 0:00:05.5]} 37. h5 {[%clk 0:00:11.6]}
37... gxh5 {[%clk 0:00:04.4]} 38. Rxf5 {[%clk 0:00:12.2]} 38... exf5 {[%clk
0:00:02.3]} 39. e6 {[%clk 0:00:13.1]} 1-0

[Event "Early-Titled-Tuesday-Blitz-June-18-2024"]
[Site "Chess.com"]
[Date "2024.06.18"]
[Round "2"]
[White "jens1102"]
[Black "HelenaWalker2912"]
[Result "1-0"]
[WhiteElo "2646"]
[BlackElo "2404"]
[TimeControl "180+1"]
[EndTime "8:18:39 PDT"]
[Termination "jens1102 won on time"]

1. e4 {[%clk 0:02:59.9]} 1... c6 {[%clk 0:03:00]} 2. Nf3 {[%clk 0:03:00]} 2...
d5 {[%clk 0:03:00.4]} 3. exd5 {[%clk 0:03:00.7]} 3... cxd5 {[%clk 0:03:01.3]} 4.
Ne5 {[%clk 0:03:01.1]} 4... Nf6 {[%clk 0:03:01.1]} 5. Bb5+ {[%clk 0:03:01.1]}
5... Bd7 {[%clk 0:02:57]} 6. Qe2 {[%clk 0:02:59.6]} 6... a6 {[%clk 0:02:43.4]}
7. Nxd7 {[%clk 0:02:58.1]} 7... Nbxd7 {[%clk 0:02:44.3]} 8. Ba4 {[%clk
0:02:56.7]} 8... b5 {[%clk 0:02:39.8]} 9. Bb3 {[%clk 0:02:56.9]} 9... e6 {[%clk
0:02:32.8]} 10. O-O {[%clk 0:02:54.2]} 10... Bd6 {[%clk 0:02:32.1]} 11. d4
{[%clk 0:02:54.3]} 11... O-O {[%clk 0:02:31.7]} 12. c3 {[%clk 0:02:54.4]} 12...
Re8 {[%clk 0:02:18.8]} 13. Nd2 {[%clk 0:02:52]} 13... e5 {[%clk 0:02:18.6]} 14.
dxe5 {[%clk 0:02:51.9]} 14... Nxe5 {[%clk 0:02:18.5]} 15. h3 {[%clk 0:02:50.3]}
15... Qc7 {[%clk 0:01:33.9]} 16. Nf3 {[%clk 0:02:45.8]} 16... Nc4 {[%clk
0:01:26.4]} 17. Qc2 {[%clk 0:02:41]} 17... h6 {[%clk 0:01:24.9]} 18. Bxc4 {[%clk
0:02:37.3]} 18... dxc4 {[%clk 0:01:23.9]} 19. Be3 {[%clk 0:02:37.8]} 19... Rad8
{[%clk 0:01:20.9]} 20. Bd4 {[%clk 0:02:37.5]} 20... Nd5 {[%clk 0:01:16.3]} 21.
Rfe1 {[%clk 0:02:31.6]} 21... Nf4 {[%clk 0:01:16]} 22. Qf5 {[%clk 0:02:30.7]}
22... Nd3 {[%clk 0:01:13.3]} 23. Qg4 {[%clk 0:02:15.9]} 23... Bf8 {[%clk
0:01:12.8]} 24. Rxe8 {[%clk 0:02:12.3]} 24... Rxe8 {[%clk 0:01:12.6]} 25. Nh4
{[%clk 0:02:11.5]} 25... Qc6 {[%clk 0:00:49.7]} 26. b3 {[%clk 0:02:05]} 26...
Qe6 {[%clk 0:00:42.4]} 27. Nf5 {[%clk 0:01:58.1]} 27... g6 {[%clk 0:00:40.5]}
28. Ne3 {[%clk 0:01:58]} 28... Qxg4 {[%clk 0:00:36.1]} 29. hxg4 {[%clk
0:01:58.8]} 29... cxb3 {[%clk 0:00:34.3]} 30. axb3 {[%clk 0:01:59.7]} 30... Re6
{[%clk 0:00:33.1]} 31. b4 {[%clk 0:02:00]} 31... Bg7 {[%clk 0:00:30.4]} 32. Bxg7
{[%clk 0:00:37.5]} 32... Kxg7 {[%clk 0:00:31.3]} 33. Kf1 {[%clk 0:00:37.3]}
33... Nf4 {[%clk 0:00:30.1]} 34. g3 {[%clk 0:00:37.1]} 34... Nd3 {[%clk
0:00:20.6]} 35. Rd1 {[%clk 0:00:37.2]} 35... Ne5 {[%clk 0:00:20.9]} 36. Rd5
{[%clk 0:00:36.4]} 36... Kf6 {[%clk 0:00:17.3]} 37. f4 {[%clk 0:00:34.5]} 37...
Nc6 {[%clk 0:00:11.9]} 38. Kf2 {[%clk 0:00:33.1]} 38... Ke7 {[%clk 0:00:08.9]}
39. Rc5 {[%clk 0:00:30.5]} 39... Rd6 {[%clk 0:00:06.5]} 40. Kf3 {[%clk
0:00:28.5]} 40... Ke6 {[%clk 0:00:05.8]} 41. Ke4 {[%clk 0:00:28.2]} 41... Ne7
{[%clk 0:00:03.9]} 42. f5+ {[%clk 0:00:28.5]} 42... gxf5+ {[%clk 0:00:03.6]} 43.
gxf5+ {[%clk 0:00:29.4]} 43... Kf6 {[%clk 0:00:03.8]} 44. Ng4+ {[%clk
0:00:27.2]} 44... Kg5 {[%clk 0:00:01.6]} 45. Ne5 {[%clk 0:00:26.6]} 45... Nxf5
{[%clk 0:00:01]} 46. Nxf7+ {[%clk 0:00:26.7]} 1-0

[Event "Early-Titled-Tuesday-Blitz-June-18-2024"]
[Site "Chess.com"]
[Date "2024.06.18"]
[Round "2"]
[White "CrimeFightingSpider07"]
[Black "LevonAronian"]
[Result "1-0"]
[WhiteElo "2530"]
[BlackElo "3015"]
[TimeControl "180+1"]
[EndTime "8:18:40 PDT"]
[Termination "CrimeFightingSpider07 won by resignation"]

1. d4 {[%clk 0:02:57.2]} 1... Nf6 {[%clk 0:02:56.9]} 2. Nf3 {[%clk 0:02:56.1]}
2... g6 {[%clk 0:02:55.9]} 3. c4 {[%clk 0:02:53.5]} 3... Bg7 {[%clk 0:02:48]} 4.
g3 {[%clk 0:02:53.4]} 4... O-O {[%clk 0:02:47.2]} 5. Bg2 {[%clk 0:02:53.3]} 5...
Nc6 {[%clk 0:02:47.3]} 6. O-O {[%clk 0:02:53.5]} 6... Rb8 {[%clk 0:02:46.7]} 7.
Nc3 {[%clk 0:02:52.9]} 7... a6 {[%clk 0:02:46.1]} 8. a4 {[%clk 0:02:50.7]} 8...
d5 {[%clk 0:02:43.6]} 9. cxd5 {[%clk 0:02:32.7]} 9... Nxd5 {[%clk 0:02:41.9]}
10. e4 {[%clk 0:02:33.2]} 10... Ndb4 {[%clk 0:02:27.3]} 11. d5 {[%clk
0:02:21.7]} 11... Na5 {[%clk 0:02:25.1]} 12. Be3 {[%clk 0:01:53.5]} 12... b6
{[%clk 0:01:56.8]} 13. Bd4 {[%clk 0:01:47.3]} 13... Bh6 {[%clk 0:01:37.7]} 14.
Na2 {[%clk 0:01:23]} 14... Nxa2 {[%clk 0:01:21.5]} 15. Rxa2 {[%clk 0:01:22.9]}
15... e6 {[%clk 0:01:12.5]} 16. Ne5 {[%clk 0:01:11.1]} 16... Bg7 {[%clk
0:00:42.6]} 17. Nc6 {[%clk 0:00:49.8]} 17... Nxc6 {[%clk 0:00:38.5]} 18. Bxg7
{[%clk 0:00:47.3]} 18... Kxg7 {[%clk 0:00:36.6]} 19. dxc6 {[%clk 0:00:47.8]}
19... e5 {[%clk 0:00:36.8]} 20. b4 {[%clk 0:00:46.9]} 20... Be6 {[%clk
0:00:33.6]} 21. Rd2 {[%clk 0:00:44.4]} 21... Qe7 {[%clk 0:00:33.8]} 22. Qb1
{[%clk 0:00:40.1]} 22... Rfd8 {[%clk 0:00:33.4]} 23. Rfd1 {[%clk 0:00:40.4]}
23... Rxd2 {[%clk 0:00:33.1]} 24. Rxd2 {[%clk 0:00:41]} 24... Rd8 {[%clk
0:00:33.2]} 25. Rxd8 {[%clk 0:00:40.1]} 25... Qxd8 {[%clk 0:00:34.1]} 26. Bf1
{[%clk 0:00:39.8]} 26... a5 {[%clk 0:00:33.4]} 27. bxa5 {[%clk 0:00:39.6]} 27...
bxa5 {[%clk 0:00:34.3]} 28. Qb5 {[%clk 0:00:16.8]} 28... Qd4 {[%clk 0:00:30.4]}
29. Qxa5 {[%clk 0:00:15.4]} 29... Qxe4 {[%clk 0:00:30.3]} 30. Qc3 {[%clk
0:00:11.8]} 30... Qxa4 {[%clk 0:00:02.3]} 31. Qxe5+ {[%clk 0:00:10.8]} 31... Kg8
{[%clk 0:00:02.7]} 32. Qxc7 {[%clk 0:00:10.6]} 32... Qe4 {[%clk 0:00:02.9]} 33.
Qd8+ {[%clk 0:00:08.2]} 33... Kg7 {[%clk 0:00:03]} 34. Qd1 {[%clk 0:00:03.3]}
34... Qxc6 {[%clk 0:00:02.7]} 35. Bg2 {[%clk 0:00:03.1]} 35... Qc5 {[%clk
0:00:03.1]} 36. Bf1 {[%clk 0:00:03.5]} 36... h5 {[%clk 0:00:02.6]} 37. Qd2
{[%clk 0:00:03.8]} 37... Kh7 {[%clk 0:00:03.1]} 38. Qe3 {[%clk 0:00:04.3]} 38...
Qc1 {[%clk 0:00:02.6]} 39. Qxc1 {[%clk 0:00:04]} 1-0

[Event "Early-Titled-Tuesday-Blitz-June-18-2024"]
[Site "Chess.com"]
[Date "2024.06.18"]
[Round "2"]
[White "Caroexpert"]
[Black "GMBenjaminBok"]
[Result "0-1"]
[WhiteElo "2651"]
[BlackElo "3003"]
[TimeControl "180+1"]
[EndTime "8:18:41 PDT"]
[Termination "GMBenjaminBok won by checkmate"]

1. d4 {[%clk 0:03:00.9]} 1... Nf6 {[%clk 0:02:58.2]} 2. c4 {[%clk 0:03:00.4]}
2... e6 {[%clk 0:02:58.5]} 3. Nc3 {[%clk 0:02:57.5]} 3... Bb4 {[%clk 0:02:58.1]}
4. e3 {[%clk 0:02:56]} 4... O-O {[%clk 0:02:57.5]} 5. Bd3 {[%clk 0:02:56.5]}
5... d5 {[%clk 0:02:57.5]} 6. a3 {[%clk 0:02:56]} 6... Bxc3+ {[%clk 0:02:57.7]}
7. bxc3 {[%clk 0:02:56.9]} 7... dxc4 {[%clk 0:02:58.6]} 8. Bxc4 {[%clk
0:02:57.7]} 8... c5 {[%clk 0:02:59.5]} 9. Ne2 {[%clk 0:02:57.7]} 9... Qc7 {[%clk
0:02:59.5]} 10. Ba2 {[%clk 0:02:52.1]} 10... b6 {[%clk 0:02:51.8]} 11. O-O
{[%clk 0:02:51.5]} 11... Ba6 {[%clk 0:02:51.2]} 12. Bb2 {[%clk 0:02:49.7]} 12...
Nc6 {[%clk 0:02:50.6]} 13. Re1 {[%clk 0:02:37.5]} 13... Rfd8 {[%clk 0:02:47.3]}
14. Ng3 {[%clk 0:02:29.6]} 14... Na5 {[%clk 0:02:23.4]} 15. e4 {[%clk
0:02:13.4]} 15... Bc4 {[%clk 0:02:21.9]} 16. Bb1 {[%clk 0:02:08.4]} 16... Nb3
{[%clk 0:01:41.4]} 17. e5 {[%clk 0:02:03.1]} 17... Nd5 {[%clk 0:01:36.6]} 18.
Qh5 {[%clk 0:01:17.4]} 18... f5 {[%clk 0:01:20.4]} 19. exf6 {[%clk 0:00:42.3]}
19... Nxf6 {[%clk 0:01:16.4]} 20. Qh4 {[%clk 0:00:42.4]} 20... Nxa1 {[%clk
0:01:09.7]} 21. Bxa1 {[%clk 0:00:40.9]} 21... cxd4 {[%clk 0:00:46.1]} 22. cxd4
{[%clk 0:00:41]} 22... Bd5 {[%clk 0:00:44.5]} 23. Bb2 {[%clk 0:00:34.1]} 23...
Rac8 {[%clk 0:00:42.5]} 24. h3 {[%clk 0:00:31.3]} 24... Rf8 {[%clk 0:00:28.4]}
25. Re5 {[%clk 0:00:07.3]} 25... h6 {[%clk 0:00:20.6]} 26. Nh5 {[%clk
0:00:04.8]} 26... Nxh5 {[%clk 0:00:16.5]} 27. Qxh5 {[%clk 0:00:02.7]} 27... Qf7
{[%clk 0:00:15.2]} 28. Qe2 {[%clk 0:00:02.9]} 28... Qf4 {[%clk 0:00:13.8]} 29.
Re3 {[%clk 0:00:02.6]} 29... Rc7 {[%clk 0:00:07.5]} 30. Rg3 {[%clk 0:00:01.7]}
30... Rfc8 {[%clk 0:00:06.3]} 31. Qd3 {[%clk 0:00:02]} 31... Rc1+ {[%clk
0:00:02.5]} 32. Bxc1 {[%clk 0:00:01.4]} 32... Rxc1+ {[%clk 0:00:03.4]} 33. Kh2
{[%clk 0:00:02.3]} 33... Kf8 {[%clk 0:00:01.8]} 34. Qh7 {[%clk 0:00:02.3]} 34...
Qf6 {[%clk 0:00:01.1]} 35. Bg6 {[%clk 0:00:02]} 35... Ke7 {[%clk 0:00:01]} 36.
Bh5 {[%clk 0:00:01.7]} 36... Kd6 {[%clk 0:00:01.1]} 37. Rxg7 {[%clk 0:00:01.7]}
37... Qf4+ {[%clk 0:00:01.4]} 38. Rg3 {[%clk 0:00:02]} 38... Qxf2 {[%clk
0:00:02]} 39. Qxh6 {[%clk 0:00:01.2]} 39... Qg1# {[%clk 0:00:02.1]} 0-1

[Event "Early-Titled-Tuesday-Blitz-June-18-2024"]
[Site "Chess.com"]
[Date "2024.06.18"]
[Round "2"]
[White "CSB7"]
[Black "DmitriiZakurdaev"]
[Result "1-0"]
[WhiteElo "2740"]
[BlackElo "2371"]
[TimeControl "180+1"]
[EndTime "8:18:41 PDT"]
[Termination "CSB7 won on time"]

1. d4 {[%clk 0:03:00.9]} 1... d5 {[%clk 0:02:59.7]} 2. c4 {[%clk 0:02:59.3]}
2... e6 {[%clk 0:02:58.4]} 3. Nc3 {[%clk 0:02:58.4]} 3... Nf6 {[%clk 0:02:57.9]}
4. Bg5 {[%clk 0:02:58.8]} 4... Be7 {[%clk 0:02:58.2]} 5. e3 {[%clk 0:02:58.2]}
5... h6 {[%clk 0:02:58.1]} 6. Bxf6 {[%clk 0:02:57.3]} 6... Bxf6 {[%clk 0:02:59]}
7. Rc1 {[%clk 0:02:56.8]} 7... O-O {[%clk 0:02:58.6]} 8. Nf3 {[%clk 0:02:56.9]}
8... c6 {[%clk 0:02:45.8]} 9. Bd3 {[%clk 0:02:53.5]} 9... dxc4 {[%clk
0:02:45.9]} 10. Bxc4 {[%clk 0:02:53.9]} 10... Nd7 {[%clk 0:02:46.2]} 11. O-O
{[%clk 0:02:53.9]} 11... e5 {[%clk 0:02:36.8]} 12. Ne4 {[%clk 0:02:53.8]} 12...
exd4 {[%clk 0:02:35.2]} 13. Nxf6+ {[%clk 0:02:50.1]} 13... Qxf6 {[%clk
0:02:31.7]} 14. Qxd4 {[%clk 0:02:51]} 14... Qxd4 {[%clk 0:02:29.5]} 15. Nxd4
{[%clk 0:02:51.9]} 15... Nb6 {[%clk 0:02:30]} 16. Bb3 {[%clk 0:02:50.7]} 16...
Bg4 {[%clk 0:02:26.4]} 17. f3 {[%clk 0:02:32.7]} 17... Bd7 {[%clk 0:02:16.3]}
18. e4 {[%clk 0:02:27.2]} 18... Rac8 {[%clk 0:02:11.5]} 19. Rc5 {[%clk
0:02:23.3]} 19... Rfd8 {[%clk 0:02:11.1]} 20. Kf2 {[%clk 0:02:15.8]} 20... Be8
{[%clk 0:02:04.3]} 21. Ke3 {[%clk 0:02:08.4]} 21... Nd7 {[%clk 0:02:02.6]} 22.
Rc3 {[%clk 0:02:03.8]} 22... Ne5 {[%clk 0:01:57.2]} 23. h3 {[%clk 0:01:14.6]}
23... Kf8 {[%clk 0:01:15.2]} 24. f4 {[%clk 0:01:11.2]} 24... Ng6 {[%clk
0:01:09.5]} 25. g3 {[%clk 0:01:01.7]} 25... c5 {[%clk 0:01:02.9]} 26. Nf3 {[%clk
0:01:01.4]} 26... b6 {[%clk 0:00:53.6]} 27. g4 {[%clk 0:00:50]} 27... Bc6 {[%clk
0:00:31.7]} 28. f5 {[%clk 0:00:48.9]} 28... Ne7 {[%clk 0:00:29.6]} 29. h4 {[%clk
0:00:36.9]} 29... Re8 {[%clk 0:00:25.1]} 30. Kf4 {[%clk 0:00:35]} 30... Ng8
{[%clk 0:00:23.7]} 31. e5 {[%clk 0:00:30.7]} 31... Ne7 {[%clk 0:00:17.9]} 32. g5
{[%clk 0:00:25.6]} 32... Nd5+ {[%clk 0:00:15.7]} 33. Bxd5 {[%clk 0:00:24.6]}
33... Bxd5 {[%clk 0:00:16.6]} 34. f6 {[%clk 0:00:19.6]} 34... Bxf3 {[%clk
0:00:13.6]} 35. Rfxf3 {[%clk 0:00:18.6]} 35... Rcd8 {[%clk 0:00:13]} 36. Rfd3
{[%clk 0:00:18.1]} 36... hxg5+ {[%clk 0:00:08.7]} 37. hxg5 {[%clk 0:00:17.7]}
37... Kg8 {[%clk 0:00:04]} 38. Kf5 {[%clk 0:00:14.2]} 38... g6+ {[%clk
0:00:02.8]} 39. Ke4 {[%clk 0:00:14.8]} 39... Rc8 {[%clk 0:00:01]} 40. Rc2 {[%clk
0:00:10.4]} 40... Rc6 {[%clk 0:00:01.4]} 41. Kf4 {[%clk 0:00:09.2]} 41... Rce6
{[%clk 0:00:01.7]} 42. Re2 {[%clk 0:00:09.8]} 42... c4 {[%clk 0:00:01]} 43. Rh3
{[%clk 0:00:10.2]} 1-0

[Event "Early-Titled-Tuesday-Blitz-June-18-2024"]
[Site "Chess.com"]
[Date "2024.06.18"]
[Round "2"]
[White "jeetjain"]
[Black "Roland_Garros_2024"]
[Result "1-0"]
[WhiteElo "2591"]
[BlackElo "2238"]
[TimeControl "180+1"]
[EndTime "8:18:41 PDT"]
[Termination "jeetjain won on time"]

1. c4 {[%clk 0:02:59.5]} 1... e5 {[%clk 0:02:59.7]} 2. Nc3 {[%clk 0:02:57.9]}
2... Nf6 {[%clk 0:03:00]} 3. g3 {[%clk 0:02:57.9]} 3... Bb4 {[%clk 0:03:00.5]}
4. Bg2 {[%clk 0:02:57.9]} 4... O-O {[%clk 0:02:59.8]} 5. e3 {[%clk 0:02:53.5]}
5... Bxc3 {[%clk 0:02:57.5]} 6. bxc3 {[%clk 0:02:52.2]} 6... d6 {[%clk
0:02:53.3]} 7. Ne2 {[%clk 0:02:48.7]} 7... Nc6 {[%clk 0:02:52.3]} 8. d3 {[%clk
0:02:43.3]} 8... Re8 {[%clk 0:02:48.3]} 9. O-O {[%clk 0:02:41.7]} 9... Be6
{[%clk 0:02:34]} 10. Rb1 {[%clk 0:02:35.9]} 10... Rb8 {[%clk 0:02:33.4]} 11.
Rxb7 {[%clk 0:02:35.4]} 11... Rxb7 {[%clk 0:02:09.8]} 12. Bxc6 {[%clk
0:02:26.5]} 12... Bh3 {[%clk 0:02:02.9]} 13. Bxb7 {[%clk 0:02:24.3]} 13... Bxf1
{[%clk 0:01:57.7]} 14. Kxf1 {[%clk 0:02:25.2]} 14... d5 {[%clk 0:01:33.7]} 15.
cxd5 {[%clk 0:02:12.5]} 15... Qd7 {[%clk 0:01:16.6]} 16. Kg2 {[%clk 0:02:03.9]}
16... Nxd5 {[%clk 0:01:10.8]} 17. c4 {[%clk 0:01:55.4]} 17... Nb4 {[%clk
0:01:02.4]} 18. d4 {[%clk 0:01:47.2]} 18... c6 {[%clk 0:00:57.2]} 19. a3 {[%clk
0:01:40.7]} 19... Na2 {[%clk 0:00:35.1]} 20. Ba6 {[%clk 0:01:33.4]} 20... exd4
{[%clk 0:00:33.7]} 21. exd4 {[%clk 0:01:21.5]} 21... Nxc1 {[%clk 0:00:19.1]} 22.
Nxc1 {[%clk 0:01:19.9]} 22... Qc7 {[%clk 0:00:10]} 23. Qa4 {[%clk 0:01:11.2]}
23... h5 {[%clk 0:00:06.5]} 24. h4 {[%clk 0:01:04.5]} 24... Re1 {[%clk
0:00:03.9]} 25. Nd3 {[%clk 0:01:03.8]} 25... Re8 {[%clk 0:00:03.2]} 26. Ne5
{[%clk 0:01:01.9]} 26... f6 {[%clk 0:00:02.2]} 27. Nxc6 {[%clk 0:00:52.4]} 27...
Qd7 {[%clk 0:00:01]} 28. d5 {[%clk 0:00:37.7]} 28... Re2 {[%clk 0:00:01.6]} 29.
Qd1 {[%clk 0:00:22.1]} 29... Qg4 {[%clk 0:00:01.7]} 30. Qd3 {[%clk 0:00:21.1]}
30... Rxf2+ {[%clk 0:00:02.2]} 31. Kxf2 {[%clk 0:00:20.5]} 31... Qh3 {[%clk
0:00:02.6]} 32. Ne7+ {[%clk 0:00:19.8]} 32... Kh8 {[%clk 0:00:02.6]} 33. c5
{[%clk 0:00:18.6]} 33... Qh2+ {[%clk 0:00:03.5]} 34. Kf3 {[%clk 0:00:18.7]}
34... Qh1+ {[%clk 0:00:04.1]} 35. Ke3 {[%clk 0:00:18.8]} 35... Qg1+ {[%clk
0:00:04.3]} 36. Ke4 {[%clk 0:00:19.3]} 36... Qh1+ {[%clk 0:00:04.3]} 37. Kd4
{[%clk 0:00:19.7]} 37... Qg1+ {[%clk 0:00:04.4]} 38. Kc4 {[%clk 0:00:19.9]}
38... Qc1+ {[%clk 0:00:04]} 39. Qc3 {[%clk 0:00:19.8]} 39... Qf1+ {[%clk
0:00:03.8]} 40. Qd3 {[%clk 0:00:20]} 40... Qc1+ {[%clk 0:00:03.7]} 41. Kb5
{[%clk 0:00:20]} 41... Qb2+ {[%clk 0:00:03.6]} 42. Kc6 {[%clk 0:00:20.5]} 42...
Qb8 {[%clk 0:00:02.5]} 43. d6 {[%clk 0:00:21.1]} 43... Qe8+ {[%clk 0:00:02.1]}
44. d7 {[%clk 0:00:20.6]} 1-0

[Event "Early-Titled-Tuesday-Blitz-June-18-2024"]
[Site "Chess.com"]
[Date "2024.06.18"]
[Round "2"]
[White "ningyzhou"]
[Black "tetrix83"]
[Result "0-1"]
[WhiteElo "2132"]
[BlackElo "2688"]
[TimeControl "180+1"]
[EndTime "8:18:42 PDT"]
[Termination "tetrix83 won by resignation"]

1. e4 {[%clk 0:03:00.9]} 1... c5 {[%clk 0:02:59.6]} 2. Nf3 {[%clk 0:02:58.4]}
2... d6 {[%clk 0:02:59.8]} 3. d4 {[%clk 0:02:56]} 3... cxd4 {[%clk 0:03:00.7]}
4. Nxd4 {[%clk 0:02:55.9]} 4... Nf6 {[%clk 0:03:01.5]} 5. Nc3 {[%clk 0:02:56.1]}
5... a6 {[%clk 0:03:02]} 6. Bg5 {[%clk 0:02:55.9]} 6... Nbd7 {[%clk 0:03:01.4]}
7. Bc4 {[%clk 0:02:54.3]} 7... Qb6 {[%clk 0:02:48.7]} 8. Qd2 {[%clk 0:02:19.5]}
8... Qxb2 {[%clk 0:02:32.8]} 9. O-O {[%clk 0:02:15.4]} 9... Qb4 {[%clk
0:02:29.3]} 10. Bb3 {[%clk 0:02:00.4]} 10... e6 {[%clk 0:02:21.4]} 11. a3 {[%clk
0:01:58.4]} 11... Qa5 {[%clk 0:02:16.8]} 12. Rfe1 {[%clk 0:01:54.2]} 12... Be7
{[%clk 0:02:15.4]} 13. f4 {[%clk 0:01:36.2]} 13... h6 {[%clk 0:01:52.2]} 14.
Bxf6 {[%clk 0:01:36.1]} 14... Bxf6 {[%clk 0:01:47.1]} 15. Kh1 {[%clk 0:01:36.4]}
15... O-O {[%clk 0:01:44.1]} 16. Qd3 {[%clk 0:01:34.3]} 16... Nc5 {[%clk
0:01:41.9]} 17. Qe3 {[%clk 0:01:33.7]} 17... Nxb3 {[%clk 0:01:29.6]} 18. cxb3
{[%clk 0:01:34.2]} 18... Bd7 {[%clk 0:01:19.7]} 19. b4 {[%clk 0:01:29.8]} 19...
Qb6 {[%clk 0:01:16.9]} 20. e5 {[%clk 0:01:30.4]} 20... dxe5 {[%clk 0:01:17]} 21.
fxe5 {[%clk 0:01:31]} 21... Bg5 {[%clk 0:01:17.2]} 22. Qf2 {[%clk 0:01:19.8]}
22... Rad8 {[%clk 0:01:08.9]} 23. Ne4 {[%clk 0:01:19.3]} 23... Ba4 {[%clk
0:00:59.2]} 24. Nc5 {[%clk 0:01:16.8]} 24... Bc6 {[%clk 0:00:55.4]} 25. Nxc6
{[%clk 0:01:11.4]} 25... Qxc6 {[%clk 0:00:53.8]} 26. Rad1 {[%clk 0:01:12]} 26...
Be7 {[%clk 0:00:50.6]} 27. Rxd8 {[%clk 0:01:05.7]} 27... Rxd8 {[%clk 0:00:51.5]}
28. Ne4 {[%clk 0:01:04.8]} 28... Qd5 {[%clk 0:00:38.8]} 29. Ng3 {[%clk 0:00:53]}
29... Qd2 {[%clk 0:00:35.3]} 30. Qf1 {[%clk 0:00:51.9]} 30... Qd3 {[%clk
0:00:35.2]} 31. Qf2 {[%clk 0:00:50.4]} 31... Qxa3 {[%clk 0:00:33.9]} 32. Rf1
{[%clk 0:00:50.3]} 32... Rf8 {[%clk 0:00:33.8]} 33. h3 {[%clk 0:00:45.8]} 33...
Qxb4 {[%clk 0:00:33.8]} 34. Nh5 {[%clk 0:00:45.6]} 34... Qh4 {[%clk 0:00:32.3]}
35. Qf3 {[%clk 0:00:43]} 35... Qg5 {[%clk 0:00:31.9]} 36. Qe2 {[%clk 0:00:36.7]}
36... b5 {[%clk 0:00:30.5]} 37. Nf4 {[%clk 0:00:34.3]} 37... b4 {[%clk
0:00:27.1]} 38. Qxa6 {[%clk 0:00:32.4]} 38... Qxe5 {[%clk 0:00:26.8]} 39. Nd3
{[%clk 0:00:29.7]} 39... Qd5 {[%clk 0:00:24.1]} 40. Nf4 {[%clk 0:00:28.4]} 40...
Qd6 {[%clk 0:00:23.6]} 41. Qc4 {[%clk 0:00:26.8]} 41... Rb8 {[%clk 0:00:22.9]}
42. Nh5 {[%clk 0:00:25.5]} 42... b3 {[%clk 0:00:19.8]} 43. Qg4 {[%clk
0:00:25.8]} 43... g6 {[%clk 0:00:19.5]} 44. Nf4 {[%clk 0:00:22.6]} 44... b2
{[%clk 0:00:19.5]} 45. Nxg6 {[%clk 0:00:18.7]} 45... Bg5 {[%clk 0:00:14.7]} 46.
h4 {[%clk 0:00:12.2]} 46... b1=Q {[%clk 0:00:14.3]} 0-1